lending/lending_fUSD_20251107
["ID","MTS","AMOUNT","RATE_DAILY","PERIOD"]
[393336699,1762488647512,-500.0,0.00035331,30]
[393336700,1762488647524,-500.0,0.00035368,30]
[393336701,1762488647534,-435.05869777,0.00035388,30]
[393336702,1762488647543,-218.83553848,0.00035397,2]
[393336703,1762488647555,-2075.77,0.000354,2]
[393336704,1762488647565,-500.0,0.00035456,30]
[393336705,1762488647575,-500.0,0.00035467,30]
[393336706,1762488647585,-500.0,0.00035467,30]
[393336707,1762488647594,-150.0,0.00035471,2]
[393336708,1762488647604,-2742.82909264,0.00035471,2]
[393336709,1762488647613,-150.0,0.00035471,2]
[393336710,1762488647623,-1045.5092866,0.00035471,2]
[393336711,1762488647632,-150.0,0.00035471,2]
[393336712,1762488647642,-2370.91853627,0.00035471,2]
[393336713,1762488647652,-5515.0,0.000355,5]
[393336714,1762488647663,-2000.0,0.00035508,120]
[393336715,1762488647675,-353.86,0.0003555,14]
[393336716,1762488647684,-2000.0,0.000356,2]
[393336717,1762488647694,-875.43111292,0.00035605,2]
[393336718,1762488647707,-999.0,0.00035616,120]
[393336719,1762488647718,-6000.0,0.00035616,5]
[393336720,1762488647728,-4000.0,0.00035616,5]
[393336721,1762488647738,-1000.0,0.00035616,5]
[393336722,1762488647747,-500.0,0.00035616,7]
[393336723,1762488647758,-641.75352453,0.00035616,7]
[393336724,1762488647768,-500.0,0.00035616,7]
[393336725,1762488647778,-678.27,0.00035616,2]
[393336726,1762488647787,-500.0,0.00035617,10]
[393336727,1762488647797,-700.0,0.00035641,30]
[393336728,1762488647806,-1188.0,0.00035692,2]
[393336729,1762488647816,-905.0,0.00035692,2]
[393336730,1762488647826,-6659.0,0.00035692,2]
[393336731,1762488647836,-2142.0,0.00035692,2]
[393336732,1762488647846,-6476.0,0.00035692,2]
[393336733,1762488647855,-10000.0,0.000357,7]
[393336734,1762488647865,-1005.0,0.000357,7]
[393336735,1762488647876,-152.0,0.00035727,11]
[393336736,1762488647886,-500.0,0.00035739,30]
[393336737,1762488647896,-3424.0,0.00035752,2]
[393336738,1762488647908,-607.0,0.00035752,2]
[393336739,1762488647918,-574.0,0.00035752,2]
[393336740,1762488647928,-1316.0,0.00035752,2]
[393336741,1762488647938,-1596.0,0.00035752,2]
[393336742,1762488647947,-820.0,0.00035752,2]
[393336743,1762488647957,-812.0,0.00035752,2]
[393336744,1762488647966,-1273.0,0.00035752,2]
[393336745,1762488647976,-335.5,0.00035762,2]
[393336746,1762488647986,-875.43111292,0.00035791,2]
[393336747,1762488647996,-285.16,0.000358,30]
[393336748,1762488648007,-500.0,0.0003581,30]
[393336749,1762488648017,-218.83553848,0.00035885,2]
[393336750,1762488648027,-199.0,0.0003589,9]
[393336751,1762488648036,-500.0,0.0003589,30]
[393336752,1762488648046,-2075.77,0.000359,2]
[393336753,1762488648057,-700.0,0.0003592,30]
[393336754,1762488648067,-17161.0,0.00035929,3]
[393336755,1762488648077,-875.43111292,0.00035943,2]
[393336756,1762488648088,-700.0,0.00035945,30]
[393336757,1762488648098,-700.0,0.00035987,30]
[393336758,1762488648111,-477.99034883,0.00036,30]
[393336759,1762488648121,-500.0,0.00036,5]
[393336760,1762488648131,-158.64,0.00036019,60]
[393336761,1762488648141,-500.0,0.00036023,30]
[393336762,1762488648150,-500.0,0.00036067,30]
[393336763,1762488648161,-800.0,0.00036071,30]
[393336764,1762488648171,-800.0,0.00036076,30]
[393336765,1762488648181,-500.0,0.00036078,30]
[393336766,1762488648191,-218.83553848,0.000361,2]
[393336767,1762488648208,-158.64,0.00036119,60]
[393336768,1762488648223,-218.83553848,0.00036181,2]
[393336769,1762488648232,-2000.0,0.000362,2]
[393336770,1762488648242,-158.64,0.00036219,60]
[393336771,1762488648252,-500.0,0.00036257,7]
[393336772,1762488648262,-500.0,0.00036257,30]
[393336773,1762488648272,-2000.0,0.00036262,120]
[393336774,1762488648283,-500.0,0.00036282,30]
[393336775,1762488648293,-8711.76239433,0.00036283,2]
[393336776,1762488648303,-9813.7408427,0.00036283,2]
[393336777,1762488648314,-302.46522981,0.00036296,15]
[393336778,1762488648323,-1240.19,0.000363,14]
[393336779,1762488648335,-1240.19,0.000363,14]
[393336780,1762488648345,-300.0,0.000363,2]
[393336781,1762488648355,-347.89316635,0.000363,2]
[393336782,1762488648365,-158.64,0.00036319,60]
[393336783,1762488648375,-875.43111292,0.00036326,2]
[393336784,1762488648385,-223.18267872,0.00036358,16]
[393336785,1762488648395,-500.0,0.00036394,30]
[393336786,1762488648404,-10000.0,0.000364,7]
[393336787,1762488648415,-1000.0,0.00036411,5]
[393336788,1762488648425,-158.64,0.00036419,60]
[393336789,1762488648435,-500.0,0.00036431,30]
[393336790,1762488648611,-218.83553848,0.00036509,2]
[393336791,1762488648621,-158.64,0.00036519,60]
[393336792,1762488648631,-875.43111292,0.00036528,2]
[393336793,1762488648640,-800.0,0.00036536,30]
[393336794,1762488648650,-500.0,0.00036555,30]
[393336795,1762488648660,-152.0,0.00036557,12]
[393336796,1762488648669,-500.0,0.00036558,30]
[393336797,1762488648679,-500.0,0.00036583,30]
[393336798,1762488648688,-800.0,0.00036592,30]
[393336799,1762488648697,-158.64,0.00036619,60]
[393336800,1762488648707,-500.0,0.00036644,30]
[393336801,1762488648717,-500.0,0.00036647,30]
[393336802,1762488648726,-263.0,0.000367,13]
[393336803,1762488648736,-1005.0,0.000367,7]
[393336804,1762488648745,-500.0,0.00036702,30]
[393336805,1762488648755,-500.0,0.00036709,30]
[393336806,1762488648765,-158.64,0.00036719,60]
[393336807,1762488648775,-800.0,0.00036722,30]
[393336808,1762488648785,-158.64,0.00036819,60]
[393336809,1762488648795,-466.89261371,0.00036822,5]
[393336810,1762488648804,-500.0,0.00036823,30]
[393336811,1762488648814,-500.0,0.00036883,30]
[393336812,1762488648823,-205.2433,0.00036888,7]
[393336813,1762488648833,-1800.0,0.000369,13]
[393336814,1762488648843,-158.64,0.00036919,60]
[393336815,1762488648853,-875.43111292,0.00036935,2]
[393336816,1762488648863,-700.0,0.00036952,30]
[393336817,1762488648873,-700.0,0.0003696,30]
[393336818,1762488648883,-700.0,0.00036967,30]
[393336819,1762488648892,-218.83553848,0.00036977,2]
[393336820,1762488648902,-500.0,0.00036987,10]
[393336821,1762488648912,-2000.0,0.00037,2]
[393336822,1762488648922,-2000.0,0.00037,2]
[393336823,1762488648932,-2000.0,0.00037,2]
[393336824,1762488648942,-2000.0,0.00037,2]
[393336825,1762488648951,-2000.0,0.00037,2]
[393336826,1762488648962,-2000.0,0.00037,2]
[393336827,1762488648971,-2000.0,0.00037,2]
[393336828,1762488648981,-2000.0,0.00037,2]
[393336829,1762488648991,-2453.579805,0.00037,27]
[393336830,1762488649008,-2000.0,0.00037017,120]
[393336831,1762488649029,-2500.0,0.00037018,2]
[393336832,1762488649039,-158.64,0.00037019,60]
[393336833,1762488649050,-875.43111292,0.00037022,2]
[393336834,1762488649060,-1222.87,0.00037035,2]
[393336835,1762488649070,-500.0,0.0003707,30]
[393336836,1762488649080,-500.0,0.00037104,30]
[393336837,1762488649089,-158.64073245,0.00037119,60]
[393336838,1762488649100,-800.0,0.00037172,30]
[393336839,1762488649111,-5114.97724599,0.00037186,7]
[393336840,1762488649121,-1240.19,0.000372,14]
[393336841,1762488649131,-218.83553848,0.00037226,2]
[393336842,1762488649142,-199.0,0.0003726,10]
[393336843,1762488649153,-500.0,0.00037272,30]
[393336844,1762488649163,-800.0,0.00037286,30]
[393336845,1762488649175,-824.18199952,0.00037348,30]
[393336846,1762488649185,-700.0,0.00037385,30]
[393336847,1762488649196,-152.0,0.00037387,13]
[393336848,1762488649206,-10000.0,0.000374,7]
[393336849,1762488649216,-500.0,0.0003745,30]
[393336850,1762488649225,-875.43111292,0.00037451,2]
[393336851,1762488649233,-218.83553848,0.00037451,2]
[393336852,1762488649240,-1168.0,0.00037499,20]
[393336853,1762488649247,-1500.0,0.000375,27]
[393336854,1762488649265,-215.47,0.00037508,2]
[393336855,1762488649276,-782.15292764,0.00037561,2]
[393336856,1762488649286,-1000.0,0.00037603,7]
[393336857,1762488649295,-500.0,0.00037669,30]
[393336858,1762488649304,-362.43,0.000377,120]
[393336859,1762488649314,-300.0,0.000377,15]
[393336860,1762488649323,-765.99026,0.000377,10]
[393336861,1762488649334,-1005.0,0.000377,7]
[393336862,1762488649343,-500.0,0.00037707,7]
[393336863,1762488649352,-218.83553848,0.00037708,2]
[393336864,1762488649361,-500.0,0.00037708,120]
[393336865,1762488649370,-500.0,0.00037708,120]
[393336866,1762488649379,-500.0,0.00037708,120]
[393336867,1762488649388,-500.0,0.00037708,120]
[393336868,1762488649397,-500.0,0.00037708,120]
[393336869,1762488649406,-500.0,0.00037708,120]
[393336870,1762488649415,-231.0,0.00037708,120]
[393336871,1762488649425,-200.0,0.00037708,2]
[393336872,1762488649434,-200.0,0.00037708,2]
[393336873,1762488649443,-200.0,0.00037708,2]
[393336874,1762488649452,-200.0,0.00037708,2]
[393336875,1762488649461,-200.0,0.00037708,2]
[393336876,1762488649470,-200.0,0.00037708,2]
[393336877,1762488649482,-200.0,0.00037708,2]
[393336878,1762488649491,-200.0,0.00037708,2]
[393336879,1762488649500,-200.0,0.00037708,2]
[393336880,1762488649509,-200.0,0.00037708,2]
[393336881,1762488649519,-200.0,0.00037708,2]
[393336882,1762488649529,-200.0,0.00037708,2]
[393336883,1762488649538,-200.0,0.00037708,2]
[393336884,1762488649549,-200.0,0.00037708,2]
[393336885,1762488649559,-200.0,0.00037708,2]
[393336886,1762488649569,-200.0,0.00037708,2]
[393336887,1762488649579,-200.0,0.00037708,2]
[393336888,1762488649588,-200.0,0.00037708,2]
[393336889,1762488649597,-200.0,0.00037708,2]
[393336890,1762488649606,-200.0,0.00037708,2]
[393336891,1762488649615,-200.0,0.00037708,2]
[393336892,1762488649624,-200.0,0.00037708,2]
[393336893,1762488649633,-200.0,0.00037708,2]
[393336894,1762488649642,-200.0,0.00037708,2]
[393336895,1762488649651,-200.0,0.00037708,2]
[393336896,1762488649661,-200.0,0.00037708,2]
[393336897,1762488649670,-200.0,0.00037708,2]
[393336898,1762488649680,-200.0,0.00037708,2]
[393336899,1762488649689,-200.0,0.00037708,2]
[393336900,1762488649699,-200.0,0.00037708,2]
[393336901,1762488649708,-200.0,0.00037708,2]
[393336902,1762488649718,-200.0,0.00037708,2]
[393336903,1762488649728,-200.0,0.00037708,2]
[393336904,1762488649739,-200.0,0.00037708,2]
[393336905,1762488649748,-200.0,0.00037708,2]
[393336906,1762488649758,-294.0,0.00037708,2]
[393336907,1762488649768,-176.0,0.00037708,13]
[393336908,1762488649777,-3388.54684246,0.00037758,10]
[393336909,1762488649788,-700.0,0.00037771,30]
[393336910,1762488649797,-2000.0,0.00037771,120]
[393336911,1762488649807,-875.43111292,0.00037777,2]
[393336912,1762488649816,-953.97,0.00037781,2]
[393336913,1762488649826,-300.0,0.00037786,2]
[393336914,1762488649836,-150.0,0.00037789,7]
[393336915,1762488649845,-500.0,0.00037792,30]
[393336916,1762488649854,-500.0,0.000378,30]
[393336917,1762488649864,-548.34,0.00037802,7]
[393336918,1762488649874,-500.0,0.00037802,7]
[393336919,1762488649883,-500.0,0.00037802,7]
[393336920,1762488649892,-500.0,0.00037802,7]
[393336921,1762488649901,-500.0,0.00037802,7]
[393336922,1762488649910,-500.0,0.00037802,7]
[393336923,1762488649920,-500.0,0.00037802,7]
[393336924,1762488649929,-500.0,0.00037802,7]
[393336925,1762488649938,-500.0,0.00037802,7]
[393336926,1762488649948,-500.0,0.00037802,7]
[393336927,1762488649957,-500.0,0.00037802,7]
[393336928,1762488649966,-622.66,0.00037802,7]
[393336929,1762488649975,-1396.4,0.00037815,2]
[393336930,1762488649984,-1000.0,0.00037823,7]
[393336931,1762488649993,-300.0,0.00037844,86]
[393336932,1762488650003,-300.0,0.00037859,2]
[393336933,1762488650011,-1168.0,0.00037886,20]
[393336934,1762488650021,-300.0,0.00037895,2]
[393336935,1762488650030,-500.0,0.00037979,30]
[393336936,1762488650039,-1034.47198696,0.00037982,20]
[393336937,1762488650048,-1030.45808084,0.00037982,20]
[393336938,1762488650057,-1130.10013211,0.00037982,20]
[393336939,1762488650066,-1071.97006651,0.00037982,20]
[393336940,1762488650075,-1134.96252649,0.00037982,20]
[393336941,1762488650084,-1104.18583193,0.00037982,20]
[393336942,1762488650093,-1037.29430238,0.00037982,20]
[393336943,1762488650102,-1130.91304932,0.00037982,20]
[393336944,1762488650111,-1120.92494304,0.00037982,20]
[393336945,1762488650120,-1014.10833582,0.00037982,20]
[393336946,1762488650130,-1066.15559628,0.00037982,20]
[393336947,1762488650140,-1130.44748804,0.00037982,20]
[393336948,1762488650149,-1056.96017996,0.00037982,20]
[393336949,1762488650159,-1012.72770317,0.00037982,20]
[393336950,1762488650168,-1064.23357233,0.00037982,20]
[393336951,1762488650177,-1991.06383625,0.00037982,20]
[393336952,1762488650186,-287.235,0.00037983,30]
[393336953,1762488650195,-337.7153675,0.00037987,120]
[393336954,1762488650204,-500.0,0.00037989,30]
[393336955,1762488650213,-150.0,0.00037995,7]
[393336956,1762488650222,-193.36797991,0.00038,2]
[393336957,1762488650231,-300.0,0.00038,2]
[393336958,1762488650240,-164.0,0.00038,30]
[393336959,1762488650249,-2320.39213969,0.00038,30]
[393336960,1762488650260,-1500.0,0.00038,27]
[393336961,1762488650275,-162.74672603,0.00038,2]
[393336962,1762488650285,-875.43111292,0.00038001,2]
[393336963,1762488650294,-510.17653817,0.00038007,30]
[393336964,1762488650303,-300.0,0.00038028,2]
[393336965,1762488650312,-880.47213416,0.00038038,30]
[393336966,1762488650321,-300.0,0.00038041,2]
[393336967,1762488650330,-218.83553848,0.00038043,2]
[393336968,1762488650340,-1000.0,0.00038052,7]
[393336969,1762488650349,-200.0,0.00038055,10]
[393336970,1762488650358,-300.0,0.00038061,2]
[393336971,1762488650367,-1000.0,0.00038066,7]
[393336972,1762488650376,-1000.0,0.0003807,7]
[393336973,1762488650386,-300.0,0.00038073,2]
[393336974,1762488650395,-150.0,0.00038074,7]
[393336975,1762488650404,-800.0,0.00038082,30]
[393336976,1762488650413,-1000.0,0.00038099,7]
[393336977,1762488650423,-505.4584771,0.000381,33]
[393336978,1762488650432,-862.55463796,0.0003812,2]
[393336979,1762488650441,-150.0,0.0003812,7]
[393336980,1762488650451,-700.0,0.00038121,30]
[393336981,1762488650459,-300.0,0.00038134,2]
[393336982,1762488650468,-150.0,0.00038139,7]
[393336983,1762488650478,-150.0,0.00038143,7]
[393336984,1762488650491,-1000.0,0.00038151,7]
[393336985,1762488650499,-1000.0,0.00038162,7]
[393336986,1762488650508,-1000.0,0.0003817,7]
[393336987,1762488650518,-700.0,0.00038181,30]
[393336988,1762488650528,-300.0,0.00038187,2]
[393336989,1762488650538,-500.0,0.00038191,30]
[393336990,1762488650547,-150.0,0.00038192,2]
[393336991,1762488650558,-1000.0,0.00038196,7]
[393336992,1762488650568,-150.0,0.00038197,7]
[393336993,1762488650578,-500.0,0.00038198,30]
[393336994,1762488650587,-1000.0,0.00038198,7]
[393336995,1762488650596,-2000.0,0.00038199,2]
[393336996,1762488650605,-1017.2501,0.00038199,2]
[393336997,1762488650614,-150.0,0.00038204,7]
[393336998,1762488650623,-152.0,0.00038216,14]
[393336999,1762488650632,-1000.0,0.0003822,7]
[393337000,1762488650641,-300.0,0.00038222,2]
[393337001,1762488650650,-1000.0,0.00038223,7]
[393337002,1762488650659,-150.66,0.00038226,2]
[393337003,1762488650669,-302.33,0.00038226,2]
[393337004,1762488650678,-213.32,0.00038226,2]
[393337005,1762488650688,-318.88,0.00038226,2]
[393337006,1762488650697,-300.0,0.00038226,2]
[393337007,1762488650706,-300.0,0.00038226,2]
[393337008,1762488650716,-150.0,0.00038226,2]
[393337009,1762488650725,-150.0,0.00038227,7]
[393337010,1762488650735,-1000.0,0.00038228,7]
[393337011,1762488650744,-875.43111292,0.00038229,2]
[393337012,1762488650753,-1000.0,0.00038233,7]
[393337013,1762488650763,-300.0,0.00038237,2]
[393337014,1762488650772,-150.0,0.00038238,7]
[393337015,1762488650782,-1000.0,0.00038242,7]
[393337016,1762488650791,-1000.0,0.00038242,7]
[393337017,1762488650801,-1000.0,0.00038244,7]
[393337018,1762488650810,-1000.0,0.00038246,7]
[393337019,1762488650819,-500.0,0.00038251,30]
[393337020,1762488650828,-1000.0,0.00038259,7]
[393337021,1762488650838,-1000.0,0.00038262,7]
[393337022,1762488650847,-150.0,0.00038269,7]
[393337023,1762488650857,-1168.0,0.00038272,20]
[393337024,1762488650866,-1000.0,0.00038274,7]
[393337025,1762488650876,-1000.0,0.00038277,7]
[393337026,1762488650885,-300.0,0.00038279,2]
[393337027,1762488650895,-150.0,0.00038282,7]
[393337028,1762488650943,-150.0,0.00038283,7]
[393337029,1762488650953,-300.0,0.00038292,2]
[393337030,1762488650962,-300.0,0.000383,2]
[393337031,1762488650971,-2200.0,0.000383,13]
[393337032,1762488650980,-300.0,0.00038302,2]
[393337033,1762488650988,-150.0,0.00038303,7]
[393337034,1762488650997,-1000.0,0.00038308,7]
[393337035,1762488651007,-544.57170129,0.0003831,7]
[393337036,1762488651017,-1000.0,0.00038311,7]
[393337037,1762488651026,-2000.0,0.00038312,2]
[393337038,1762488651035,-1000.0,0.00038312,7]
[393337039,1762488651044,-1000.0,0.00038317,7]
[393337040,1762488651053,-1000.0,0.00038318,7]
[393337041,1762488651063,-800.0,0.00038318,30]
[393337042,1762488651072,-1000.0,0.0003832,7]
[393337043,1762488651080,-1000.0,0.00038323,7]
[393337044,1762488651090,-1000.0,0.00038325,7]
[393337045,1762488651099,-150.0,0.00038325,7]
[393337046,1762488651109,-300.0,0.00038333,2]
[393337047,1762488651118,-300.0,0.00038335,2]
[393337048,1762488651128,-218.83553848,0.00038336,2]
[393337049,1762488651138,-1000.0,0.00038337,7]
[393337050,1762488651146,-1000.0,0.00038346,7]
[393337051,1762488651156,-1000.0,0.00038347,7]
[393337052,1762488651165,-999.0,0.00038356,120]
[393337053,1762488651175,-500.0,0.00038356,2]
[393337054,1762488651184,-500.0,0.00038356,10]
[393337055,1762488651193,-1000.0,0.0003836,7]
[393337056,1762488651202,-1000.0,0.00038364,7]
[393337057,1762488651211,-150.0,0.00038368,7]
[393337058,1762488651221,-1000.0,0.00038369,7]
[393337059,1762488651230,-300.0,0.0003837,2]
[393337060,1762488651240,-300.0,0.00038376,2]
[393337061,1762488651250,-300.0,0.00038378,2]
[393337062,1762488651259,-95620.77060682,0.0003838,2]
[393337063,1762488651268,-800.0,0.00038388,30]
[393337064,1762488651277,-10000.0,0.000384,30]
[393337065,1762488651287,-400.0,0.000384,14]
[393337066,1762488651296,-150.0,0.00038401,7]
[393337067,1762488651305,-1000.0,0.00038402,7]
[393337068,1762488651315,-800.0,0.00038411,30]
[393337069,1762488651324,-200.0,0.00038412,20]
[393337070,1762488651335,-1000.0,0.00038413,7]
[393337071,1762488651344,-175.27,0.00038419,7]
[393337072,1762488651355,-150.0,0.00038421,7]
[393337073,1762488651363,-150.0,0.00038421,7]
[393337074,1762488651372,-225.0,0.00038425,2]
[393337075,1762488651382,-1000.0,0.00038425,7]
[393337076,1762488651391,-150.0,0.00038427,7]
[393337077,1762488651400,-500.0,0.00038441,30]
[393337078,1762488651409,-500.0,0.00038447,30]
[393337079,1762488651418,-300.0,0.00038448,2]
[393337080,1762488651426,-157.01898712,0.00038448,2]
[393337081,1762488651436,-218.83553857,0.00038454,2]
[393337082,1762488651446,-722.9,0.00038459,30]
[393337083,1762488651455,-722.9,0.00038459,30]
[393337084,1762488651464,-722.9,0.00038459,30]
[393337085,1762488651473,-722.9,0.00038459,30]
[393337086,1762488651485,-1000.0,0.00038459,7]
[393337087,1762488651494,-800.0,0.00038464,30]
[393337088,1762488651503,-1000.0,0.0003847,14]
[393337089,1762488651512,-313851.6914383,0.00038472,2]
[393337090,1762488651522,-8343.2939811,0.00038472,2]
[393337091,1762488651531,-48379.2314031,0.00038472,2]
[393337092,1762488651540,-24189.6157016,0.00038472,2]
[393337093,1762488651550,-25663.9595495,0.00038472,2]
[393337094,1762488651559,-1000.0,0.00038474,7]
[393337095,1762488651569,-300.0,0.00038477,2]
[393337096,1762488651578,-150.0,0.0003848,7]
[393337097,1762488651588,-1000.0,0.00038481,7]
[393337098,1762488651597,-769.545172,0.000385,27]
[393337099,1762488651606,-400.0,0.000385,14]
[393337100,1762488651615,-1500.0,0.000385,27]
[393337101,1762488651624,-1000.0,0.00038506,7]
[393337102,1762488651633,-1000.0,0.00038509,7]
[393337103,1762488651642,-1000.0,0.00038519,7]
[393337104,1762488651651,-875.43111294,0.00038524,2]
[393337105,1762488651660,-150.0,0.00038525,7]
[393337106,1762488651670,-150.0,0.00038525,7]
[393337107,1762488651680,-2000.0,0.00038526,120]
[393337108,1762488651690,-500.0,0.00038535,30]
[393337109,1762488651704,-1000.0,0.00038537,7]
[393337110,1762488651713,-1000.0,0.00038548,7]
[393337111,1762488651722,-1000.0,0.0003855,7]
[393337112,1762488651732,-150.0,0.00038551,7]
[393337113,1762488651741,-204.67396113,0.00038553,120]
[393337114,1762488651751,-1000.0,0.00038558,7]
[393337115,1762488651761,-1000.0,0.00038561,7]
[393337116,1762488651770,-150.0,0.00038564,7]
[393337117,1762488651780,-1000.0,0.00038572,7]
[393337118,1762488651789,-150.0,0.00038572,7]
[393337119,1762488651799,-1000.0,0.00038572,7]
[393337120,1762488651809,-1000.0,0.0003858,7]
[393337121,1762488651819,-1000.0,0.00038581,7]
[393337122,1762488651828,-1000.0,0.00038582,7]
[393337123,1762488651837,-1000.0,0.00038583,7]
[393337124,1762488651847,-1000.0,0.00038585,7]
[393337125,1762488651856,-3490.14942642,0.000386,7]
[393337126,1762488651865,-300.0,0.000386,2]
[393337127,1762488651875,-400.0,0.000386,14]
[393337128,1762488651884,-150.0,0.00038605,7]
[393337129,1762488651893,-150.0,0.00038608,7]
[393337130,1762488651903,-1000.0,0.00038608,7]
[393337131,1762488651912,-1000.0,0.00038613,7]
[393337132,1762488651921,-1000.0,0.00038622,7]
[393337133,1762488651931,-199.0,0.0003863,11]
[393337134,1762488651940,-300.0,0.00038631,2]
[393337135,1762488651950,-300.0,0.00038633,2]
[393337136,1762488651958,-1000.0,0.00038633,120]
[393337137,1762488651967,-1000.0,0.00038635,7]
[393337138,1762488651977,-150.0,0.00038638,7]
[393337139,1762488651987,-1000.0,0.00038639,7]
[393337140,1762488651996,-6122.71645,0.0003864,2]
[393337141,1762488652006,-167.83404792,0.00038643,120]
[393337142,1762488652015,-269.18039782,0.00038643,120]
[393337143,1762488652025,-269.18039782,0.00038643,120]
[393337144,1762488652033,-269.18039782,0.00038643,120]
[393337145,1762488652042,-269.18039782,0.00038643,120]
[393337146,1762488652052,-269.18039782,0.00038643,120]
[393337147,1762488652060,-269.18039782,0.00038643,120]
[393337148,1762488652069,-269.18039782,0.00038643,120]
[393337149,1762488652078,-269.18039782,0.00038643,120]
[393337150,1762488652087,-269.18039782,0.00038643,120]
[393337151,1762488652095,-269.18039782,0.00038643,120]
[393337152,1762488652104,-269.18039782,0.00038643,120]
[393337153,1762488652114,-269.18039782,0.00038643,120]
[393337154,1762488652123,-269.18039782,0.00038643,120]
[393337155,1762488652132,-269.18039782,0.00038643,120]
[393337156,1762488652140,-269.18039782,0.00038643,120]
[393337157,1762488652149,-269.18039782,0.00038643,120]
[393337158,1762488652158,-269.18039782,0.00038643,120]
[393337159,1762488652167,-269.18039782,0.00038643,120]
[393337160,1762488652177,-269.18039782,0.00038643,120]
[393337161,1762488652186,-269.18,0.00038643,120]
[393337162,1762488652195,-628.08759491,0.00038643,120]
[393337163,1762488652203,-628.08759491,0.00038643,120]
[393337164,1762488652213,-628.08759491,0.00038643,120]
[393337165,1762488652222,-628.08759491,0.00038643,120]
[393337166,1762488652231,-628.08759491,0.00038643,120]
[393337167,1762488652240,-628.08759491,0.00038643,120]
[393337168,1762488652249,-628.08759491,0.00038643,120]
[393337169,1762488652259,-628.08759491,0.00038643,120]
[393337170,1762488652269,-628.08759491,0.00038643,120]
[393337171,1762488652279,-628.08759491,0.00038643,120]
[393337172,1762488652288,-628.08759491,0.00038643,120]
[393337173,1762488652297,-628.08759491,0.00038643,120]
[393337174,1762488652306,-628.08759491,0.00038643,120]
[393337175,1762488652315,-628.08759491,0.00038643,120]
[393337176,1762488652325,-628.08759491,0.00038643,120]
[393337177,1762488652334,-628.08759491,0.00038643,120]
[393337178,1762488652344,-628.08759491,0.00038643,120]
[393337179,1762488652354,-628.08759491,0.00038643,120]
[393337180,1762488652364,-628.08759491,0.00038643,120]
[393337181,1762488652373,-300.0,0.00038643,2]
[393337182,1762488652384,-8711.76239433,0.00038643,2]
[393337183,1762488652393,-9813.7408427,0.00038643,2]
[393337184,1762488652403,-300.0,0.0003865,2]
[393337185,1762488652413,-1000.0,0.00038654,7]
[393337186,1762488652422,-150.0,0.00038655,7]
[393337187,1762488652431,-150.0,0.00038656,7]
[393337188,1762488652445,-174.31415008,0.00038657,2]
[393337189,1762488652455,-167.83,0.00038658,120]
[393337190,1762488652465,-176.48,0.00038658,120]
[393337191,1762488652475,-628.08,0.00038658,120]
[393337192,1762488652489,-302.46522981,0.00038658,15]
[393337193,1762488652498,-1168.0,0.00038659,20]
[393337194,1762488652507,-1000.0,0.00038662,7]
[393337195,1762488652517,-1000.0,0.00038674,7]
[393337196,1762488652526,-1000.0,0.00038674,7]
[393337197,1762488652535,-300.0,0.00038677,2]
[393337198,1762488652545,-1000.0,0.00038677,7]